fUSD/lending_fUSD_20250521
["ID","MTS","AMOUNT","RATE_DAILY","PERIOD"]
[361823374,1747823618440,-685.16,0.00036712,5]
[361823375,1747823618450,-192.42511029,0.00036712,5]
[361823376,1747823618460,-448.34,0.00036712,5]
[361823377,1747823618471,-1485.21,0.00036712,5]
[361823378,1747823618481,-818.23,0.00036712,5]
[361823379,1747823618491,-443.81,0.00036712,5]
[361823380,1747823618501,-1526.88,0.00036712,5]
[361823381,1747823618512,-420.0,0.00036712,5]
[361823382,1747823618522,-470.16,0.00036712,5]
[361823383,1747823618764,-528.41991174,0.00036712,5]
[361823384,1747823618775,-443.58,0.00036712,5]
[361823385,1747823618784,-669.64,0.00036712,5]
[361823386,1747823618794,-420.0,0.00036712,5]
[361823387,1747823618803,-937.45,0.00036712,5]
[361823388,1747823618813,-2266.87,0.00036712,5]
[361823389,1747823618822,-420.0,0.00036712,5]
[361823390,1747823618832,-420.0,0.00036712,5]
[361823391,1747823618842,-442.68,0.00036712,5]
[361823392,1747823618852,-420.0,0.00036712,5]
[361823393,1747823618861,-597.09,0.00036712,5]
[361823394,1747823618870,-655.53,0.00036712,5]
[361823395,1747823618880,-636.42,0.00036712,5]
[361823396,1747823618891,-420.0,0.00036712,5]
[361823397,1747823618901,-838.78,0.00036712,5]
[361823398,1747823618911,-493.93,0.00036712,5]
[361823399,1747823618921,-420.0,0.00036712,5]
[361823400,1747823618931,-560.23,0.00036712,5]
[361823401,1747823618940,-1078.18,0.00036712,5]
[361823402,1747823618950,-420.0,0.00036712,5]
[361823403,1747823618960,-420.0,0.00036712,5]
[361823404,1747823618970,-1065.69,0.00036712,5]
[361823405,1747823618980,-1253.93,0.00036712,5]
[361823406,1747823618990,-1274.75,0.00036712,5]
[361823407,1747823618999,-463.91,0.00036712,5]
[361823408,1747823619009,-721.97,0.00036712,5]
[361823409,1747823619019,-2322.3,0.00036712,5]
[361823410,1747823619028,-420.0,0.00036712,5]
[361823411,1747823619038,-821.62,0.00036712,5]
[361823412,1747823619047,-422.38,0.00036712,5]
[361823413,1747823619058,-420.0,0.00036712,5]
[361823414,1747823619068,-550.85,0.00036712,5]
[361823415,1747823619078,-1544.61,0.00036712,5]
[361823416,1747823619088,-420.0,0.00036712,5]
[361823417,1747823619098,-499.46,0.00036712,5]
[361823418,1747823619108,-616.6,0.00036712,5]
[361823419,1747823619118,-678.04,0.00036712,5]
[361823420,1747823619127,-546.75,0.00036712,5]
[361823421,1747823619137,-1170.85,0.00036712,5]
[361823422,1747823619147,-420.0,0.00036712,5]
[361823423,1747823619157,-420.0,0.00036712,5]
[361823424,1747823619167,-1581.01,0.00036712,5]
[361823425,1747823619177,-250.58020043,0.00036712,5]
[361823426,1747823619186,-2020.82,0.00036712,5]
[361823427,1747823619196,-1587.36,0.00036712,5]
[361823428,1747823619206,-440.31,0.00036712,5]
[361823429,1747823619216,-528.73,0.00036712,5]
[361823430,1747823619225,-420.0,0.00036712,5]
[361823431,1747823619236,-835.65,0.00036712,5]
[361823432,1747823619245,-530.24,0.00036712,5]
[361823433,1747823619256,-420.0,0.00036712,5]
[361823434,1747823619266,-632.49,0.00036712,5]
[361823435,1747823619275,-712.53,0.00036712,5]
[361823436,1747823619286,-420.0,0.00036712,5]
[361823437,1747823619295,-420.0,0.00036712,5]
[361823438,1747823619305,-905.81,0.00036712,5]
[361823439,1747823619316,-1500.35,0.00036712,5]
[361823440,1747823619325,-913.23,0.00036712,5]
[361823441,1747823619335,-891.23,0.00036712,5]
[361823442,1747823619345,-420.0,0.00036712,5]
[361823443,1747823619355,-420.0,0.00036712,5]
[361823444,1747823619365,-420.0,0.00036712,5]
[361823445,1747823619374,-793.59,0.00036712,5]
[361823446,1747823619387,-420.0,0.00036712,5]
[361823447,1747823619398,-532.78,0.00036712,5]
[361823448,1747823619407,-420.0,0.00036712,5]
[361823449,1747823619418,-420.0,0.00036712,5]
[361823450,1747823619429,-716.67,0.00036712,5]
[361823451,1747823619439,-431.22,0.00036712,5]
[361823452,1747823619449,-3321.89,0.00036712,5]
[361823453,1747823619459,-655.87,0.00036712,5]
[361823454,1747823619469,-420.0,0.00036712,5]
[361823455,1747823619479,-464.92,0.00036712,5]
[361823456,1747823619489,-752.46,0.00036712,5]
[361823457,1747823619498,-1164.32,0.00036712,5]
[361823458,1747823619507,-447.46,0.00036712,5]
[361823459,1747823619517,-1182.51,0.00036712,5]
[361823460,1747823619527,-970.46,0.00036712,5]
[361823461,1747823619536,-2566.8,0.00036712,3]
[361823462,1747823619546,-420.0,0.00036712,5]
[361823463,1747823619555,-986.1,0.00036712,5]
[361823464,1747823619566,-3544.76,0.00036712,5]
[361823465,1747823619576,-420.0,0.00036712,5]
[361823466,1747823619586,-528.46,0.00036712,5]
[361823467,1747823619597,-1116.24,0.00036712,5]
[361823468,1747823619606,-607.2,0.00036712,5]
[361823469,1747823619615,-498.41,0.00036712,5]
[361823470,1747823619626,-511.54,0.00036712,5]
[361823471,1747823619636,-420.0,0.00036712,5]
[361823472,1747823619645,-1446.26,0.00036712,5]
[361823473,1747823619655,-635.53,0.00036712,5]
[361823474,1747823619665,-420.0,0.00036712,5]
[361823475,1747823619674,-602.05,0.00036712,5]
[361823476,1747823619684,-420.0,0.00036712,5]
[361823477,1747823619694,-420.0,0.00036712,5]
[361823478,1747823619704,-3171.93,0.00036712,5]
[361823479,1747823619714,-672.06,0.00036712,5]
[361823480,1747823619724,-1136.92,0.00036712,5]
[361823481,1747823619734,-501.87,0.00036712,5]
[361823482,1747823619744,-420.0,0.00036712,5]
[361823483,1747823619753,-960.17,0.00036712,5]
[361823484,1747823619763,-1498.01,0.00036712,5]
[361823485,1747823619773,-420.0,0.00036712,5]
[361823486,1747823619783,-420.0,0.00036712,5]
[361823487,1747823619794,-530.03416489,0.00036712,5]
[361823488,1747823619803,-489.93,0.00036712,5]
[361823489,1747823619813,-420.0,0.00036712,5]
[361823490,1747823619824,-1181.55,0.00036712,5]
[361823491,1747823619834,-1634.56,0.00036712,5]
[361823492,1747823619843,-731.06,0.00036712,5]
[361823493,1747823619853,-665.75,0.00036712,5]
[361823494,1747823619862,-474.15495158,0.00036712,5]
[361823495,1747823619872,-1010.87,0.00036712,5]
[361823496,1747823619882,-725.49,0.00036712,5]
[361823497,1747823619891,-1218.91,0.00036712,5]
[361823498,1747823619901,-1168.31,0.00036712,5]
[361823499,1747823619911,-1264.38,0.00036712,5]
[361823500,1747823619920,-420.0,0.00036712,5]
[361823501,1747823619930,-420.0,0.00036712,2]
[361823502,1747823619941,-3033.08,0.00036712,5]
[361823503,1747823619951,-584.07,0.00036712,5]
[361823504,1747823619962,-420.0,0.00036712,5]
[361823505,1747823619972,-420.0,0.00036712,5]
[361823506,1747823619982,-740.34,0.00036712,5]
[361823507,1747823619992,-420.0,0.00036712,5]
[361823508,1747823620002,-420.0,0.00036712,5]
[361823509,1747823620012,-1236.73,0.00036712,5]
[361823510,1747823620022,-420.0,0.00036712,5]
[361823511,1747823620032,-718.57,0.00036712,5]
[361823512,1747823620042,-420.0,0.00036712,2]
[361823513,1747823620051,-2646.97,0.00036712,5]
[361823514,1747823620061,-420.0,0.00036712,5]
[361823515,1747823620071,-3655.51,0.00036712,5]
[361823516,1747823620082,-420.0,0.00036712,5]
[361823517,1747823620092,-1194.67,0.00036712,5]
[361823518,1747823620102,-637.39,0.00036712,5]
[361823519,1747823620112,-2368.39,0.00036712,5]
[361823520,1747823620122,-932.97,0.00036712,5]
[361823521,1747823620132,-475.79,0.00036712,5]
[361823522,1747823620142,-788.04,0.00036712,5]
[361823523,1747823620151,-469.81,0.00036712,5]
[361823524,1747823620161,-1158.88,0.00036712,5]
[361823525,1747823620171,-2693.72,0.00036712,5]
[361823526,1747823620181,-2741.78,0.00036712,5]
[361823527,1747823620190,-1351.52,0.00036712,5]
[361823528,1747823620200,-420.0,0.00036712,5]
[361823529,1747823620210,-1167.31,0.00036712,5]
[361823530,1747823620220,-1192.06,0.00036712,5]
[361823531,1747823620230,-664.46,0.00036712,5]
[361823532,1747823620240,-2096.4,0.00036712,5]
[361823533,1747823620250,-783.68,0.00036712,5]
[361823534,1747823620260,-506.87,0.00036712,5]
[361823535,1747823620270,-1450.92,0.00036712,5]
[361823536,1747823620279,-1675.88,0.00036712,5]
[361823537,1747823620289,-420.0,0.00036712,5]
[361823538,1747823620299,-421.11,0.00036712,5]
[361823539,1747823620309,-655.43,0.00036712,5]
[361823540,1747823620319,-1330.16,0.00036712,5]
[361823541,1747823620328,-628.75,0.00036712,5]
[361823542,1747823620338,-470.23,0.00036712,5]
[361823543,1747823620347,-789.43,0.00036712,5]
[361823544,1747823620357,-2066.32,0.00036712,5]
[361823545,1747823620366,-543.38,0.00036712,5]
[361823546,1747823620376,-1884.88,0.00036712,5]
[361823547,1747823620388,-443.39,0.00036712,5]
[361823548,1747823620399,-814.52,0.00036712,5]
[361823549,1747823620410,-420.0,0.00036712,5]
[361823550,1747823620419,-468.75,0.00036712,5]
[361823551,1747823620430,-2280.59,0.00036712,5]
[361823552,1747823620440,-420.0,0.00036712,5]
[361823553,1747823620451,-420.0,0.00036712,5]
[361823554,1747823620460,-1660.08,0.00036712,5]
[361823555,1747823620472,-420.0,0.00036712,5]
[361823556,1747823620482,-420.0,0.00036712,5]
[361823557,1747823620492,-2531.44,0.00036712,5]
[361823558,1747823620502,-891.37,0.00036712,5]
[361823559,1747823620516,-1229.28,0.00036712,5]
[361823560,1747823620525,-420.0,0.00036712,5]
[361823561,1747823620535,-562.73,0.00036712,5]
[361823562,1747823620546,-420.0,0.00036712,5]
[361823563,1747823620555,-639.64,0.00036712,5]
[361823564,1747823620565,-1520.14,0.00036712,5]
[361823565,1747823620575,-420.0,0.00036712,5]
[361823566,1747823620584,-2002.78,0.00036712,5]
[361823567,1747823620594,-504.03,0.00036712,5]
[361823568,1747823620604,-420.0,0.00036712,5]
[361823569,1747823620614,-756.35,0.00036712,5]
[361823570,1747823620624,-420.0,0.00036712,5]
[361823571,1747823620635,-1155.6,0.00036712,5]
[361823572,1747823620645,-2487.3,0.00036712,5]
[361823573,1747823620655,-829.63,0.00036712,5]
[361823574,1747823620664,-440.4,0.00036712,5]
[361823575,1747823620674,-420.0,0.00036712,5]
[361823576,1747823620685,-512.22,0.00036712,5]
[361823577,1747823620695,-1069.06,0.00036712,5]
[361823578,1747823620704,-1131.24,0.00036712,5]
[361823579,1747823620714,-3548.27,0.00036712,5]
[361823580,1747823620724,-531.37,0.00036712,5]
[361823581,1747823620733,-438.38,0.00036712,5]
[361823582,1747823620743,-276.12731298,0.00036712,5]
[361823583,1747823620752,-836.66,0.00036712,5]
[361823584,1747823620761,-1758.59,0.00036712,5]
[361823585,1747823620772,-2244.73,0.00036712,5]
[361823586,1747823620781,-706.99,0.00036712,5]
[361823587,1747823620791,-1671.68,0.00036712,5]
[361823588,1747823620801,-1303.3,0.00036712,5]
[361823589,1747823620810,-630.7,0.00036712,5]
[361823590,1747823620820,-1546.03,0.00036712,5]
[361823591,1747823620830,-1449.1,0.00036712,5]
[361823592,1747823620839,-1084.11,0.00036712,5]
[361823593,1747823620849,-796.16,0.00036712,5]
[361823594,1747823620859,-829.47,0.00036712,5]
[361823595,1747823620868,-560.22,0.00036712,5]
[361823596,1747823620878,-2061.87,0.00036712,5]
[361823597,1747823620889,-1759.24,0.00036712,5]
[361823598,1747823620898,-677.92,0.00036712,5]
[361823599,1747823620908,-420.0,0.00036712,5]
[361823600,1747823620918,-2008.9,0.00036712,5]
[361823601,1747823620928,-420.0,0.00036712,5]
[361823602,1747823620938,-603.25,0.00036712,5]
[361823603,1747823620947,-3335.62,0.00036712,5]
[361823604,1747823620957,-794.93,0.00036712,5]
[361823605,1747823620966,-462.11,0.00036712,5]
[361823606,1747823620977,-1384.78,0.00036712,5]
[361823607,1747823620987,-3088.45,0.00036712,5]
[361823608,1747823620997,-3415.98,0.00036712,5]
[361823609,1747823621007,-475.97,0.00036712,5]
[361823610,1747823621017,-420.0,0.00036712,5]
[361823611,1747823621027,-1441.04,0.00036712,5]
[361823612,1747823621037,-1360.17,0.00036712,5]
[361823613,1747823621046,-799.95,0.00036712,5]
[361823614,1747823621056,-1022.16,0.00036712,5]
[361823615,1747823621066,-2905.57,0.00036712,5]
[361823616,1747823621075,-420.0,0.00036712,5]
[361823617,1747823621085,-2154.53,0.00036712,5]
[361823618,1747823621094,-1412.77,0.00036712,5]
[361823619,1747823621104,-420.0,0.00036712,5]
[361823620,1747823621113,-1804.92,0.00036712,5]
[361823621,1747823621123,-931.82,0.00036712,5]
[361823622,1747823621133,-3820.81,0.00036712,5]
[361823623,1747823621143,-448.68867554,0.00036712,5]
[361823624,1747823621152,-446.52,0.00036712,5]
[361823625,1747823621162,-420.0,0.00036712,5]
[361823626,1747823621171,-3379.22,0.00036712,5]
[361823627,1747823621181,-552.29,0.00036712,5]
[361823628,1747823621190,-2204.62,0.00036712,5]
[361823629,1747823621200,-1365.61,0.00036712,5]
[361823630,1747823621209,-739.98,0.00036712,5]
[361823631,1747823621219,-1686.16,0.00036712,5]
[361823632,1747823621228,-638.15,0.00036712,5]
[361823633,1747823621237,-2851.0,0.00036712,5]
[361823634,1747823621247,-420.0,0.00036712,5]
[361823635,1747823621257,-641.93,0.00036712,5]
[361823636,1747823621266,-669.03,0.00036712,5]
[361823637,1747823621275,-1513.514558,0.00036712,5]
[361823638,1747823621285,-1056.24,0.00036712,5]
[361823639,1747823621294,-605.2,0.00036712,5]
[361823640,1747823621304,-3414.72,0.00036712,5]
[361823641,1747823621314,-456.44,0.00036712,5]
[361823642,1747823621324,-2738.58,0.00036712,5]
[361823643,1747823621334,-626.72,0.00036712,5]
[361823644,1747823621343,-1961.22,0.00036712,5]
[361823645,1747823621353,-4019.16,0.00036712,5]
[361823646,1747823621363,-420.0,0.00036712,5]
[361823647,1747823621372,-501.19,0.00036712,5]
[361823648,1747823621382,-437.02,0.00036712,5]
[361823649,1747823621396,-420.0,0.00036712,5]
[361823650,1747823621405,-3829.73,0.00036712,5]
[361823651,1747823621415,-1171.35,0.00036712,5]
[361823652,1747823621425,-1195.86,0.00036712,5]
[361823653,1747823621435,-1602.68,0.00036712,5]
[361823654,1747823621445,-1595.56,0.00036712,5]
[361823655,1747823621454,-1403.63,0.00036712,5]
[361823656,1747823621463,-420.0,0.00036712,5]
[361823657,1747823621473,-1620.22,0.00036712,5]
[361823658,1747823621483,-2127.07,0.00036712,5]
[361823659,1747823621493,-975.42,0.00036712,5]
[361823660,1747823621502,-663.27,0.00036712,5]
[361823661,1747823621512,-4718.07,0.00036712,5]
[361823662,1747823621521,-1651.18,0.00036712,5]
[361823663,1747823621531,-560.95,0.00036712,5]
[361823664,1747823621540,-701.41,0.00036712,5]
[361823665,1747823621550,-950.44,0.00036712,5]
[361823666,1747823621560,-420.0,0.00036712,5]
[361823667,1747823621569,-708.42,0.00036712,5]
[361823668,1747823621579,-3358.3,0.00036712,5]
[361823669,1747823621589,-420.0,0.00036712,5]
[361823670,1747823621599,-1131.94,0.00036712,5]
[361823671,1747823621609,-3071.77,0.00036712,5]
[361823672,1747823621619,-1890.69,0.00036712,5]
[361823673,1747823621628,-2588.8,0.00036712,5]
[361823674,1747823621639,-1081.97,0.00036712,5]
[361823675,1747823621649,-447.09,0.00036712,5]
[361823676,1747823621658,-1061.79,0.00036712,5]
[361823677,1747823621670,-3165.26,0.00036712,5]
[361823678,1747823621680,-420.0,0.00036712,5]
[361823679,1747823621689,-1578.73,0.00036712,5]
[361823680,1747823621699,-437.54,0.00036712,5]
[361823681,1747823621708,-801.31,0.00036712,5]
[361823682,1747823621718,-1117.87,0.00036712,5]
[361823683,1747823621728,-590.41,0.00036712,5]
[361823684,1747823621737,-646.24,0.00036712,5]
[361823685,1747823621747,-469.33,0.00036712,5]
[361823686,1747823621756,-1582.05,0.00036712,5]
[361823687,1747823621765,-944.65,0.00036712,5]
[361823688,1747823621775,-1388.27,0.00036712,5]
[361823689,1747823621785,-420.0,0.00036712,5]
[361823690,1747823621794,-817.62,0.00036712,5]
[361823691,1747823621803,-1313.42,0.00036712,5]
[361823692,1747823621813,-2499.18,0.00036712,5]
[361823693,1747823621823,-2712.821305,0.00036712,5]
[361823694,1747823621832,-591.99,0.00036712,5]
[361823695,1747823621841,-358.49078696,0.00036712,5]
[361823696,1747823621851,-2676.06,0.00036712,5]
[361823697,1747823621861,-420.0,0.00036712,5]
[361823698,1747823621870,-1630.17,0.00036712,5]
[361823699,1747823621880,-2046.62,0.00036712,5]
[361823700,1747823621890,-707.44,0.00036712,5]
[361823701,1747823621899,-420.0,0.00036712,5]
[361823702,1747823621909,-524.92,0.00036712,5]
[361823703,1747823621919,-844.05,0.00036712,5]
[361823704,1747823621928,-2122.24,0.00036712,5]
[361823705,1747823621937,-603.94,0.00036712,5]
[361823706,1747823621947,-5021.23,0.00036712,5]
[361823707,1747823621957,-1529.49,0.00036712,5]
[361823708,1747823621966,-1250.7,0.00036712,5]
[361823709,1747823621975,-420.0,0.00036712,5]
[361823710,1747823621985,-1682.48,0.00036712,5]
[361823711,1747823621994,-1386.81,0.00036712,5]
[361823712,1747823622004,-730.49,0.00036712,5]
[361823713,1747823622014,-447.9,0.00036712,5]
[361823714,1747823622023,-1324.88,0.00036712,5]
[361823715,1747823622033,-2229.66,0.00036712,5]
[361823716,1747823622043,-472.1,0.00036712,5]
[361823717,1747823622052,-434.93,0.00036712,5]
[361823718,1747823622062,-420.0,0.00036712,5]
[361823719,1747823622071,-1282.33,0.00036712,5]
[361823720,1747823622081,-444.34,0.00036712,5]
[361823721,1747823622091,-2643.47,0.00036712,5]
[361823722,1747823622101,-1343.09,0.00036712,5]
[361823723,1747823622111,-600.65,0.00036712,5]
[361823724,1747823622121,-1076.93,0.00036712,5]
[361823725,1747823622132,-1416.84,0.00036712,5]
[361823726,1747823622143,-1332.5,0.00036712,5]
[361823727,1747823622152,-1392.97,0.00036712,5]
[361823728,1747823622162,-682.19,0.00036712,5]
[361823729,1747823622171,-438.34,0.00036712,5]
[361823730,1747823622180,-791.4,0.00036712,5]
[361823731,1747823622191,-1000.0,0.00036712,30]
[361823732,1747823622200,-632.83,0.00036712,5]
[361823733,1747823622210,-713.78,0.00036712,5]
[361823734,1747823622219,-2568.63,0.00036712,5]
[361823735,1747823622229,-420.0,0.00036712,5]
[361823736,1747823622239,-1222.57,0.00036712,5]
[361823737,1747823622248,-420.0,0.00036712,5]
[361823738,1747823622257,-1185.11,0.00036712,5]
[361823739,1747823622267,-3400.95,0.00036712,5]
[361823740,1747823622277,-618.99,0.00036712,5]
[361823741,1747823622286,-559.3,0.00036712,5]
[361823742,1747823622296,-2592.87,0.00036712,5]
[361823743,1747823622306,-729.48,0.00036712,5]
[361823744,1747823622315,-1036.77,0.00036712,5]
[361823745,1747823622325,-912.69,0.00036712,5]
[361823746,1747823622335,-2077.17,0.00036712,5]
[361823747,1747823622345,-474.23,0.00036712,5]
[361823748,1747823622355,-633.02,0.00036712,5]
[361823749,1747823622364,-2143.32,0.00036712,5]
[361823750,1747823622375,-2433.64,0.00036712,5]
[361823751,1747823622388,-2156.45,0.00036712,5]
[361823752,1747823622399,-680.33,0.00036712,5]
[361823753,1747823622410,-1587.63,0.00036712,5]
[361823754,1747823622422,-3338.68,0.00036712,5]
[361823755,1747823622433,-2132.67,0.00036712,5]
[361823756,1747823622444,-539.66,0.00036712,5]
[361823757,1747823622454,-1108.21,0.00036712,5]
[361823758,1747823622464,-1448.56,0.00036712,5]
[361823759,1747823622474,-366.62441375,0.00036712,5]
[361823760,1747823622486,-1231.09,0.00036712,5]
[361823761,1747823622496,-1449.81,0.00036712,5]
[361823762,1747823622505,-420.0,0.00036712,5]
[361823763,1747823622516,-2507.82,0.00036712,5]
[361823764,1747823622525,-2269.59,0.00036712,5]
[361823765,1747823622535,-461.55,0.00036712,5]
[361823766,1747823622546,-3289.43,0.00036712,5]
[361823767,1747823622556,-1017.25,0.00036712,5]
[361823768,1747823622567,-1196.46,0.00036712,5]
[361823769,1747823622577,-420.0,0.00036712,5]
[361823770,1747823622587,-1902.38,0.00036712,5]
[361823771,1747823622597,-4528.11,0.00036712,5]
[361823772,1747823622607,-437.58,0.00036712,5]
[361823773,1747823622616,-2709.01,0.00036712,5]
[361823774,1747823622627,-934.68,0.00036712,5]
[361823775,1747823622638,-644.31,0.00036712,5]
[361823776,1747823622648,-3000.52,0.00036712,5]
[361823777,1747823622659,-2558.61,0.00036712,5]
[361823778,1747823622668,-919.21,0.00036712,5]
[361823779,1747823622678,-1016.83,0.00036712,5]
[361823780,1747823622687,-3800.75,0.00036712,5]
[361823781,1747823622697,-1283.86,0.00036712,5]
[361823782,1747823622707,-5012.54,0.00036712,5]
[361823783,1747823622718,-4257.36,0.00036712,5]
[361823784,1747823622727,-420.0,0.00036712,5]
[361823785,1747823622737,-420.0,0.00036712,5]
[361823786,1747823622747,-420.0,0.00036712,5]
[361823787,1747823622756,-2661.46,0.00036712,5]
[361823788,1747823622765,-7175.57,0.00036712,5]
[361823789,1747823622775,-1626.84,0.00036712,5]
[361823790,1747823622784,-7478.95,0.00036712,5]
[361823791,1747823622794,-1297.42,0.00036712,5]
[361823792,1747823622803,-1050.66,0.00036712,5]
[361823793,1747823622813,-459.54,0.00036712,5]
[361823794,1747823622823,-3186.22,0.00036712,5]
[361823795,1747823622833,-1603.59,0.00036712,5]
[361823796,1747823622843,-1706.72,0.00036712,5]
[361823797,1747823622853,-1118.07,0.00036712,5]
[361823798,1747823622864,-1819.17,0.00036712,5]
[361823799,1747823622874,-477.62,0.00036712,5]
[361823800,1747823622884,-500.47,0.00036712,5]
[361823801,1747823622894,-3456.53,0.00036712,5]
[361823802,1747823622903,-1245.18,0.00036712,5]
[361823803,1747823622914,-864.67,0.00036712,5]
[361823804,1747823622924,-485.82,0.00036712,5]
[361823805,1747823622934,-1044.28,0.00036712,5]
[361823806,1747823622944,-483.53,0.00036712,5]
[361823807,1747823622955,-2279.99,0.00036712,5]
[361823808,1747823622964,-1093.42,0.00036712,5]
[361823809,1747823622974,-773.61,0.00036712,5]
[361823810,1747823623125,-1587.6,0.00036712,5]
[361823811,1747823623136,-2000.0,0.00036712,5]
[361823812,1747823623147,-3023.35,0.00036712,5]
[361823813,1747823623157,-2681.61,0.00036712,5]
[361823814,1747823623167,-3921.51,0.00036712,5]
[361823815,1747823623177,-774.74,0.00036712,5]
[361823816,1747823623188,-11832.32,0.00036712,5]
[361823817,1747823623198,-1140.49,0.00036712,5]
[361823818,1747823623208,-716.85,0.00036712,5]
[361823819,1747823623219,-1451.14,0.00036712,5]
[361823820,1747823623229,-1980.16,0.00036712,5]
[361823821,1747823623238,-4169.63,0.00036712,5]
[361823822,1747823623248,-614.3,0.00036712,5]
[361823823,1747823623258,-1064.83,0.00036712,5]
[361823824,1747823623268,-478.74,0.00036712,5]
[361823825,1747823623278,-1031.8,0.00036712,5]
[361823826,1747823623288,-2328.19,0.00036712,5]
[361823827,1747823623298,-2178.09,0.00036712,5]
[361823828,1747823623308,-595.22,0.00036712,5]
[361823829,1747823623318,-193.14317663,0.00036712,5]
[361823830,1747823623328,-12779.36,0.00036712,5]
[361823831,1747823623338,-3199.69,0.00036712,5]
[361823832,1747823623348,-464.93,0.00036712,5]
[361823833,1747823623358,-1385.93,0.00036712,5]
[361823834,1747823623368,-3624.48,0.00036712,5]
[361823835,1747823623379,-1592.89,0.00036712,5]
[361823836,1747823623392,-420.0,0.00036712,5]
[361823837,1747823623402,-3239.25,0.00036712,5]
[361823838,1747823623412,-4626.37,0.00036712,5]
[361823839,1747823623422,-1377.38,0.00036712,5]
[361823840,1747823623434,-613.45,0.00036712,5]
[361823841,1747823623444,-2100.46,0.00036712,5]
[361823842,1747823623455,-232873.01,0.00036712,5]
[361823843,1747823623465,-356.10524007,0.00036712,5]
[361823844,1747823623475,-2870.6,0.00036712,5]
[361823845,1747823623486,-420.0,0.00036712,5]
[361823846,1747823623496,-544.44,0.00036712,5]
[361823847,1747823623506,-2582.79,0.00036712,5]
[361823848,1747823623516,-1455.85,0.00036712,5]
[361823849,1747823623526,-1140.2,0.00036712,5]
[361823850,1747823623536,-3817.8,0.00036712,5]
[361823851,1747823623546,-814.19,0.00036712,5]
[361823852,1747823623555,-1001.8,0.00036712,5]
[361823853,1747823623566,-24741.12,0.00036712,5]
[361823854,1747823623576,-746.18,0.00036712,5]
[361823855,1747823623586,-1332.61,0.00036712,5]
[361823856,1747823623596,-847.4,0.00036712,5]
[361823857,1747823623607,-6653.58,0.00036712,5]
[361823858,1747823623616,-2208.36,0.00036712,5]
[361823859,1747823623626,-3466.92,0.00036712,5]
[361823860,1747823623636,-756.27,0.00036712,5]
[361823861,1747823623646,-2780.98,0.00036712,5]
[361823862,1747823623656,-3727.2,0.00036712,5]
[361823863,1747823623666,-43430.9,0.00036712,5]
[361823864,1747823623676,-4377.12,0.00036712,5]
[361823865,1747823623686,-662.42,0.00036712,5]
[361823866,1747823623696,-1355.36,0.00036712,5]
[361823867,1747823623706,-1646.2,0.00036712,5]
[361823868,1747823623716,-3823.68,0.00036712,5]
[361823869,1747823623726,-1929.18,0.00036712,5]
[361823870,1747823623735,-692.1,0.00036712,5]
[361823871,1747823623745,-27430.46,0.00036712,5]
[361823872,1747823623755,-694.13,0.00036712,5]
[361823873,1747823623765,-1375.19,0.00036712,5]